fUSD/lending_fUSD_20240301
["ID","MTS","AMOUNT","RATE_DAILY","PERIOD"]
[315999567,1709320249779,-565.62,0.00022246,2]
[315999568,1709320249790,-500.0,0.00022246,2]
[315999569,1709320249799,-500.0,0.00022246,2]
[315999570,1709320249809,-151.0,0.00022246,2]
[315999571,1709320249819,-781.88,0.00022246,2]
[315999572,1709320249828,-500.0,0.00022246,2]
[315999573,1709320249838,-500.0,0.00022246,2]
[315999574,1709320249847,-663.68,0.00022246,2]
[315999575,1709320249856,-500.0,0.00022246,2]
[315999576,1709320249865,-500.0,0.00022246,2]
[315999577,1709320249875,-500.0,0.00022246,2]
[315999578,1709320249885,-500.0,0.00022246,2]
[315999579,1709320249894,-500.0,0.00022246,2]
[315999580,1709320249904,-3725.24,0.00022246,2]
[315999581,1709320249913,-500.0,0.00022246,2]
[315999582,1709320249922,-500.0,0.00022246,2]
[315999583,1709320249932,-500.0,0.00022246,2]
[315999584,1709320249941,-2364.96,0.00022246,2]
[315999585,1709320249950,-151.0,0.00022246,7]
[315999586,1709320249960,-500.0,0.00022246,2]
[315999587,1709320249973,-151.0,0.00022246,7]
[315999588,1709320249983,-1864.01,0.00022246,2]
[315999589,1709320249992,-500.0,0.00022246,2]
[315999590,1709320250002,-500.0,0.00022246,2]
[315999591,1709320250011,-500.0,0.00022246,2]
[315999592,1709320250021,-500.0,0.00022246,2]
[315999593,1709320250030,-151.0,0.00022246,7]
[315999594,1709320250040,-349.26835377,0.00022246,2]
[315999595,1709320250457,-150.73164623,0.00022246,2]
[315999596,1709320250468,-111.68502825,0.00022246,2]
[315999597,1709320250594,-726.12497175,0.00022246,2]
[315999598,1709320250604,-151.0,0.00022246,7]
[315999599,1709320250617,-500.0,0.00022246,2]
[315999600,1709320250629,-151.0,0.00022246,7]
[315999601,1709320250639,-500.0,0.00022246,2]
[315999602,1709320250649,-2565.92,0.00022246,2]
[315999603,1709320250659,-151.0,0.00022246,7]
[315999604,1709320250669,-500.0,0.00022246,2]
[315999605,1709320250679,-500.0,0.00022246,2]
[315999606,1709320250689,-1484.75,0.00022246,2]
[315999607,1709320250699,-500.0,0.00022246,2]
[315999608,1709320250709,-500.0,0.00022246,2]
[315999609,1709320250720,-1661.66,0.00022246,2]
[315999610,1709320250730,-500.0,0.00022246,2]
[315999611,1709320250740,-500.0,0.00022246,2]
[315999612,1709320250750,-989.57,0.00022246,2]
[315999613,1709320250760,-500.0,0.00022246,2]
[315999614,1709320250770,-500.0,0.00022246,2]
[315999615,1709320250781,-537.0,0.00022246,2]
[315999616,1709320250791,-842.62,0.00022246,2]
[315999617,1709320250801,-500.0,0.00022246,2]
[315999618,1709320250812,-500.0,0.00022246,2]
[315999619,1709320250822,-500.0,0.00022246,2]
[315999620,1709320250832,-500.0,0.00022246,2]
[315999621,1709320250843,-500.0,0.00022246,2]
[315999622,1709320250853,-151.0,0.00022246,7]
[315999623,1709320250865,-500.0,0.00022246,2]
[315999624,1709320250876,-500.0,0.00022246,2]
[315999625,1709320250886,-4557.4,0.00022246,2]
[315999626,1709320250897,-500.0,0.00022246,2]
[315999627,1709320250907,-500.0,0.00022246,2]
[315999628,1709320250917,-151.0,0.00022246,7]
[315999629,1709320250927,-150.0,0.0002225,2]
[315999630,1709320250940,-500.0,0.00022253,2]
[315999631,1709320250950,-500.0,0.00022253,2]
[315999632,1709320250960,-385.16371254,0.00022254,2]
[315999633,1709320250970,-500.0,0.00022254,2]
[315999634,1709320250981,-624.05629435,0.00022254,2]
[315999635,1709320250991,-558.40110832,0.00022255,2]
[315999636,1709320251002,-501.24605574,0.00022255,2]
[315999637,1709320251012,-158.46,0.00022282,2]
[315999638,1709320251023,-21801.51648086,0.000223,4]
[315999639,1709320251033,-734.0,0.00022305,2]
[315999640,1709320251044,-150.0,0.00022312,2]
[315999641,1709320251055,-155.33,0.00022349,2]
[315999642,1709320251066,-570.42,0.00022356,2]
[315999643,1709320251076,-595.13976359,0.00022356,2]
[315999644,1709320251086,-500.0,0.00022356,2]
[315999645,1709320251097,-500.0,0.00022356,2]
[315999646,1709320251108,-500.0,0.00022356,2]
[315999647,1709320251119,-500.0,0.00022356,2]
[315999648,1709320251129,-500.0,0.00022356,2]
[315999649,1709320251140,-582.18930036,0.00022356,2]
[315999650,1709320251150,-500.0,0.00022356,2]
[315999651,1709320251161,-500.0,0.00022356,2]
[315999652,1709320251171,-500.0,0.00022356,2]
[315999653,1709320251181,-500.0,0.00022356,2]
[315999654,1709320251192,-500.0,0.00022356,2]
[315999655,1709320251204,-611.42982332,0.00022356,2]
[315999656,1709320251215,-570.20361708,0.00022356,2]
[315999657,1709320251225,-500.0,0.00022356,2]
[315999658,1709320251236,-500.0,0.00022356,2]
[315999659,1709320251246,-500.0,0.00022356,2]
[315999660,1709320251257,-500.0,0.00022356,2]
[315999661,1709320251267,-500.0,0.00022356,2]
[315999662,1709320251278,-500.0,0.00022356,2]
[315999663,1709320251288,-500.0,0.00022356,2]
[315999664,1709320251298,-500.0,0.00022356,2]
[315999665,1709320251308,-500.0,0.00022356,2]
[315999666,1709320251319,-348.47133301,0.00022356,2]
[315999667,1709320251331,-500.0,0.00022356,2]
[315999668,1709320251341,-500.0,0.00022356,2]
[315999669,1709320251352,-314.8,0.00022356,2]
[315999670,1709320251363,-500.0,0.00022356,2]
[315999671,1709320251373,-500.0,0.00022356,2]
[315999672,1709320251383,-500.0,0.00022356,2]
[315999673,1709320251393,-500.0,0.00022356,2]
[315999674,1709320251403,-500.0,0.00022356,2]
[315999675,1709320251412,-500.0,0.00022356,2]
[315999676,1709320251423,-560.22,0.00022356,2]
[315999677,1709320251433,-500.0,0.00022356,2]
[315999678,1709320251443,-500.0,0.00022356,2]
[315999679,1709320251453,-500.0,0.00022356,2]
[315999680,1709320251464,-1535.68,0.00022356,2]
[315999681,1709320251474,-500.0,0.00022356,2]
[315999682,1709320251485,-500.0,0.00022356,2]
[315999683,1709320251496,-500.0,0.00022356,2]
[315999684,1709320251505,-500.0,0.00022356,2]
[315999685,1709320251517,-635.5652978,0.00022356,2]
[315999686,1709320251528,-500.0,0.00022356,2]
[315999687,1709320251538,-500.0,0.00022356,2]
[315999688,1709320251549,-500.0,0.00022356,2]
[315999689,1709320251559,-500.0,0.00022356,2]
[315999690,1709320251569,-500.0,0.00022356,2]
[315999691,1709320251579,-500.0,0.00022356,2]
[315999692,1709320251589,-500.0,0.00022356,2]
[315999693,1709320251604,-500.0,0.00022356,2]
[315999694,1709320251615,-500.0,0.00022356,2]
[315999695,1709320251624,-250.8,0.00022356,2]
[315999696,1709320251634,-500.0,0.00022356,2]
[315999697,1709320251643,-500.0,0.00022356,2]
[315999698,1709320251653,-500.0,0.00022356,2]
[315999699,1709320251664,-500.0,0.00022356,2]
[315999700,1709320251674,-297.34661399,0.00022356,2]
[315999701,1709320251690,-202.65338601,0.00022356,2]
[315999702,1709320251701,-163.21950005,0.00022356,2]
[315999703,1709320251714,-336.78049995,0.00022356,2]
[315999704,1709320251724,-500.0,0.00022356,2]
[315999705,1709320251745,-500.0,0.00022356,2]
[315999706,1709320251757,-150.0,0.00022356,2]
[315999707,1709320251768,-500.0,0.00022356,2]
[315999708,1709320251779,-2419.06,0.00022356,2]
[315999709,1709320251790,-500.0,0.00022356,2]
[315999710,1709320251802,-547.94257592,0.00022356,2]
[315999711,1709320251813,-500.0,0.00022356,2]
[315999712,1709320251824,-500.0,0.00022356,2]
[315999713,1709320251835,-500.0,0.00022356,2]
[315999714,1709320251846,-500.0,0.00022356,2]
[315999715,1709320251857,-500.0,0.00022356,2]
[315999716,1709320251869,-500.0,0.00022356,2]
[315999717,1709320251881,-185.77840133,0.00022356,2]
[315999718,1709320251892,-500.0,0.00022356,2]
[315999719,1709320251902,-572.55275531,0.00022356,2]
[315999720,1709320251912,-500.0,0.00022356,2]
[315999721,1709320251923,-500.0,0.00022356,2]
[315999722,1709320251933,-500.0,0.00022356,2]
[315999723,1709320251943,-500.0,0.00022356,2]
[315999724,1709320251954,-212.53550097,0.00022356,2]
[315999725,1709320251964,-500.0,0.00022356,2]
[315999726,1709320251974,-500.0,0.00022356,2]
[315999727,1709320251984,-500.0,0.00022356,2]
[315999728,1709320251994,-500.0,0.00022356,2]
[315999729,1709320252005,-500.0,0.00022356,2]
[315999730,1709320252015,-500.0,0.00022356,2]
[315999731,1709320252026,-500.0,0.00022356,2]
[315999732,1709320252036,-500.0,0.00022356,2]
[315999733,1709320252046,-500.0,0.00022356,2]
[315999734,1709320252057,-500.0,0.00022356,2]
[315999735,1709320252068,-500.0,0.00022356,2]
[315999736,1709320252080,-500.0,0.00022356,2]
[315999737,1709320252090,-500.0,0.00022356,2]
[315999738,1709320252101,-500.0,0.00022356,2]
[315999739,1709320252112,-500.0,0.00022356,2]
[315999740,1709320252124,-500.0,0.00022356,2]
[315999741,1709320252353,-500.0,0.00022356,2]
[315999742,1709320252365,-500.0,0.00022356,2]
[315999743,1709320252375,-500.0,0.00022356,2]
[315999744,1709320252385,-500.0,0.00022356,2]
[315999745,1709320252395,-500.0,0.00022356,2]
[315999746,1709320252405,-500.0,0.00022356,2]
[315999747,1709320252414,-555.0,0.00022356,2]
[315999748,1709320252425,-500.0,0.00022356,2]
[315999749,1709320252434,-500.0,0.00022356,2]
[315999750,1709320252444,-1263.89,0.00022356,2]
[315999751,1709320252453,-500.0,0.00022356,2]
[315999752,1709320252462,-500.0,0.00022356,2]
[315999753,1709320252472,-500.0,0.00022356,2]
[315999754,1709320252482,-500.0,0.00022356,2]
[315999755,1709320252491,-500.0,0.00022356,2]
[315999756,1709320252501,-500.0,0.00022356,2]
[315999757,1709320252510,-500.0,0.00022356,2]
[315999758,1709320252522,-500.0,0.00022356,2]
[315999759,1709320252532,-500.0,0.00022356,2]
[315999760,1709320252542,-504.8,0.00022356,2]
[315999761,1709320252551,-500.0,0.00022356,2]
[315999762,1709320252561,-964.22,0.00022356,2]
[315999763,1709320252572,-500.0,0.00022356,2]
[315999764,1709320252582,-500.0,0.00022356,2]
[315999765,1709320252591,-500.0,0.00022356,2]
[315999766,1709320252603,-569.76,0.00022356,2]
[315999767,1709320252614,-500.0,0.00022356,2]
[315999768,1709320252624,-500.0,0.00022356,2]
[315999769,1709320252633,-500.0,0.00022356,2]
[315999770,1709320252642,-2152.64,0.00022356,2]
[315999771,1709320252652,-500.0,0.00022356,2]
[315999772,1709320252661,-500.0,0.00022356,2]
[315999773,1709320252671,-500.0,0.00022356,2]
[315999774,1709320252681,-500.0,0.00022356,2]
[315999775,1709320252692,-500.0,0.00022356,2]
[315999776,1709320252701,-500.0,0.00022356,2]
[315999777,1709320252711,-869.51,0.00022356,2]
[315999778,1709320252721,-500.0,0.00022356,2]
[315999779,1709320252731,-500.0,0.00022356,2]
[315999780,1709320252741,-151.0,0.00022356,7]
[315999781,1709320252750,-500.0,0.00022356,2]
[315999782,1709320252760,-878.87,0.00022356,2]
[315999783,1709320252770,-1152.74,0.00022356,2]
[315999784,1709320252780,-299.98,0.00022356,2]
[315999785,1709320252790,-500.0,0.00022356,2]
[315999786,1709320252800,-500.0,0.00022356,2]
[315999787,1709320252810,-500.0,0.00022356,2]
[315999788,1709320252820,-500.0,0.00022356,2]
[315999789,1709320252829,-500.0,0.00022356,2]
[315999790,1709320252839,-3725.49,0.00022356,2]
[315999791,1709320252849,-500.0,0.00022356,2]
[315999792,1709320252859,-500.0,0.00022356,2]
[315999793,1709320252869,-500.0,0.00022356,2]
[315999794,1709320252880,-151.0,0.00022356,7]
[315999795,1709320252889,-500.0,0.00022356,2]
[315999796,1709320252899,-151.0,0.00022356,7]
[315999797,1709320252909,-500.0,0.00022356,2]
[315999798,1709320252918,-837.45,0.00022356,2]
[315999799,1709320252928,-500.0,0.00022356,2]
[315999800,1709320252937,-500.0,0.00022356,2]
[315999801,1709320252947,-292.87,0.00022356,2]
[315999802,1709320252957,-500.0,0.00022356,2]
[315999803,1709320252966,-500.0,0.00022356,2]
[315999804,1709320252976,-500.0,0.00022356,2]
[315999805,1709320252985,-156.637293,0.00022356,7]
[315999806,1709320252994,-500.0,0.00022356,2]
[315999807,1709320253004,-500.0,0.00022356,2]
[315999808,1709320253013,-193.94,0.00022356,2]
[315999809,1709320253022,-156.637293,0.00022356,7]
[315999810,1709320253032,-500.0,0.00022356,2]
[315999811,1709320253041,-151.0,0.00022356,7]
[315999812,1709320253051,-500.0,0.00022356,2]
[315999813,1709320253060,-500.0,0.00022356,2]
[315999814,1709320253070,-500.0,0.00022356,2]
[315999815,1709320253079,-500.0,0.00022356,2]
[315999816,1709320253088,-500.0,0.00022356,2]
[315999817,1709320253098,-1387.81,0.00022356,2]
[315999818,1709320253108,-500.0,0.00022356,2]
[315999819,1709320253118,-1558.13,0.00022356,2]
[315999820,1709320253127,-151.0,0.00022356,7]
[315999821,1709320253136,-500.0,0.00022356,2]
[315999822,1709320253146,-500.0,0.00022356,2]
[315999823,1709320253155,-151.0,0.00022356,7]
[315999824,1709320253165,-1310.38,0.00022356,2]
[315999825,1709320253174,-500.0,0.00022356,2]
[315999826,1709320253184,-802.0,0.00022356,2]
[315999827,1709320253193,-500.0,0.00022356,2]
[315999828,1709320253205,-500.0,0.00022356,2]
[315999829,1709320253215,-2997.13,0.00022356,2]
[315999830,1709320253225,-151.0,0.00022356,7]
[315999831,1709320253234,-500.0,0.00022356,2]
[315999832,1709320253245,-910.04,0.00022356,2]
[315999833,1709320253254,-539.34,0.00022356,2]
[315999834,1709320253264,-500.0,0.00022356,2]
[315999835,1709320253273,-351.249226,0.00022356,7]
[315999836,1709320253284,-500.0,0.00022356,2]
[315999837,1709320253294,-500.0,0.00022356,2]
[315999838,1709320253304,-3691.99,0.00022356,2]
[315999839,1709320253313,-500.0,0.00022356,2]
[315999840,1709320253323,-351.249226,0.00022356,7]
[315999841,1709320253332,-525.0,0.00022356,2]
[315999842,1709320253342,-356.83114533,0.00022356,2]
[315999843,1709320253352,-500.0,0.00022356,2]
[315999844,1709320253362,-500.0,0.00022356,2]
[315999845,1709320253372,-500.0,0.00022356,2]
[315999846,1709320253382,-500.0,0.00022356,2]
[315999847,1709320253392,-922.38,0.00022356,2]
[315999848,1709320253401,-961.88,0.00022356,2]
[315999849,1709320253411,-512.8,0.00022356,2]
[315999850,1709320253420,-575.84,0.00022356,2]
[315999851,1709320253430,-500.0,0.00022356,2]
[315999852,1709320253439,-500.0,0.00022356,2]
[315999853,1709320253449,-621.15,0.00022356,2]
[315999854,1709320253458,-166.72,0.00022356,2]
[315999855,1709320253468,-1501.8,0.00022356,2]
[315999856,1709320253477,-734.63,0.00022356,2]
[315999857,1709320253486,-500.0,0.00022356,2]
[315999858,1709320253496,-578.43,0.00022356,2]
[315999859,1709320253506,-565.62,0.00022356,2]
[315999860,1709320253516,-500.0,0.00022356,2]
[315999861,1709320253525,-500.0,0.00022356,2]
[315999862,1709320253538,-781.88,0.00022356,2]
[315999863,1709320253548,-500.0,0.00022356,2]
[315999864,1709320253557,-500.0,0.00022356,2]
[315999865,1709320253566,-663.68,0.00022356,2]
[315999866,1709320253576,-500.0,0.00022356,2]
[315999867,1709320253585,-500.0,0.00022356,2]
[315999868,1709320253595,-500.0,0.00022356,2]
[315999869,1709320253605,-500.0,0.00022356,2]
[315999870,1709320253616,-500.0,0.00022356,2]
[315999871,1709320253626,-3725.24,0.00022356,2]
[315999872,1709320253635,-500.0,0.00022356,2]
[315999873,1709320253645,-500.0,0.00022356,2]
[315999874,1709320253655,-500.0,0.00022356,2]
[315999875,1709320253664,-2364.96,0.00022356,2]
[315999876,1709320253674,-500.0,0.00022356,2]
[315999877,1709320253683,-1864.01,0.00022356,2]
[315999878,1709320253693,-500.0,0.00022356,2]
[315999879,1709320253703,-500.0,0.00022356,2]
[315999880,1709320253714,-550.56937127,0.00022356,2]
[315999881,1709320253723,-500.0,0.00022356,2]
[315999882,1709320253733,-500.0,0.00022356,2]
[315999883,1709320253743,-837.81,0.00022356,2]
[315999884,1709320253753,-500.0,0.00022356,2]
[315999885,1709320253762,-500.0,0.00022356,2]
[315999886,1709320253772,-2565.92,0.00022356,2]
[315999887,1709320253782,-500.0,0.00022356,2]
[315999888,1709320253792,-500.0,0.00022356,2]
[315999889,1709320253801,-1484.75,0.00022356,2]
[315999890,1709320253810,-500.0,0.00022356,2]
[315999891,1709320253820,-500.0,0.00022356,2]
[315999892,1709320253830,-1661.66,0.00022356,2]
[315999893,1709320253839,-500.0,0.00022356,2]
[315999894,1709320253849,-500.0,0.00022356,2]
[315999895,1709320253859,-989.57,0.00022356,2]
[315999896,1709320253869,-500.0,0.00022356,2]
[315999897,1709320253879,-500.0,0.00022356,2]
[315999898,1709320253889,-842.62,0.00022356,2]
[315999899,1709320253899,-500.0,0.00022356,2]
[315999900,1709320253909,-500.0,0.00022356,2]
[315999901,1709320253919,-500.0,0.00022356,2]
[315999902,1709320253929,-500.0,0.00022356,2]
[315999903,1709320253939,-500.0,0.00022356,2]
[315999904,1709320253949,-151.0,0.00022356,7]
[315999905,1709320253958,-500.0,0.00022356,2]
[315999906,1709320253968,-500.0,0.00022356,2]
[315999907,1709320253978,-4557.4,0.00022356,2]
[315999908,1709320253988,-500.0,0.00022356,2]
[315999909,1709320253998,-500.0,0.00022356,2]
[315999910,1709320254007,-151.0,0.00022356,7]
[315999911,1709320254017,-500.0,0.00022362,2]
[315999912,1709320254026,-500.0,0.00022364,2]
[315999913,1709320254035,-9000.0,0.00022369,2]
[315999914,1709320254045,-151.0,0.00022369,2]
[315999915,1709320254055,-151.0,0.00022369,7]
[315999916,1709320254064,-151.0,0.00022369,7]
[315999917,1709320254074,-151.0,0.00022369,7]
[315999918,1709320254084,-151.0,0.00022369,7]
[315999919,1709320254094,-151.0,0.00022369,7]
[315999920,1709320254103,-151.0,0.00022369,7]
[315999921,1709320254113,-217.447954,0.000224,7]
[315999922,1709320254122,-217.447954,0.000224,7]
[315999923,1709320254132,-151.0,0.000224,7]
[315999924,1709320254142,-1500.0,0.000224,2]
[315999925,1709320254152,-10510.45781013,0.00022417,2]
[315999926,1709320254161,-486.54499129,0.00022417,2]
[315999927,1709320254171,-153.82081052,0.00022418,2]
[315999928,1709320254181,-997.2227383,0.00022449,3]
[315999929,1709320254190,-1510.31628332,0.00022449,3]
[315999930,1709320254200,-203.73533298,0.00022449,3]
[315999931,1709320254209,-273.76438565,0.00022449,3]
[315999932,1709320254219,-2138.99822812,0.00022457,2]
[315999933,1709320254228,-2866.62468725,0.00022457,2]
[315999934,1709320254238,-2158.2476961,0.00022457,2]
[315999935,1709320254248,-165.70840078,0.00022458,2]
[315999936,1709320254257,-164.628962,0.00022459,7]
[315999937,1709320254266,-151.0,0.00022459,7]
[315999938,1709320254276,-153.652218,0.00022459,7]
[315999939,1709320254285,-151.0,0.00022459,2]
[315999940,1709320254295,-151.0,0.00022459,2]
[315999941,1709320254304,-151.0,0.00022459,2]
[315999942,1709320254314,-500.0,0.00022459,2]
[315999943,1709320254323,-500.0,0.00022459,2]
[315999944,1709320254332,-500.0,0.00022459,2]
[315999945,1709320254343,-500.0,0.00022459,2]
[315999946,1709320254352,-150.0,0.00022459,2]
[315999947,1709320254362,-108098.14393555,0.0002246,2]
[315999948,1709320254379,-592.14260203,0.0002246,2]
[315999949,1709320254392,-891309.71346242,0.0002246,2]
[315999950,1709320254402,-151.0,0.0002246,7]
[315999951,1709320254411,-151.0,0.0002246,7]
[315999952,1709320254421,-151.0,0.0002246,7]
[315999953,1709320254430,-151.0,0.0002246,7]
[315999954,1709320254439,-151.0,0.0002246,7]
[315999955,1709320254449,-151.0,0.0002246,7]
[315999956,1709320254459,-151.0,0.0002246,7]
[315999957,1709320254468,-151.259244,0.0002246,7]
[315999958,1709320254477,-151.0,0.0002246,7]
[315999959,1709320254486,-151.0,0.0002246,7]
[315999960,1709320254495,-151.0,0.0002246,2]
[315999961,1709320254505,-151.0,0.0002246,7]
[315999962,1709320254514,-151.0,0.0002246,7]
[315999963,1709320254524,-151.0,0.0002246,7]
[315999964,1709320254536,-151.0,0.0002246,7]
[315999965,1709320254545,-151.0,0.0002246,2]
[315999966,1709320254555,-151.0,0.0002246,2]
[315999967,1709320254565,-151.0,0.0002246,7]
[315999968,1709320254574,-217.447954,0.0002246,7]
[315999969,1709320254584,-217.447954,0.0002246,7]
[315999970,1709320254593,-180.76669,0.0002246,7]
[315999971,1709320254603,-151.0,0.0002246,7]
[315999972,1709320254614,-151.0,0.0002246,7]
[315999973,1709320254623,-156.637293,0.0002246,7]
[315999974,1709320254633,-156.637293,0.0002246,7]
[315999975,1709320254642,-151.0,0.0002246,7]
[315999976,1709320254652,-151.0,0.0002246,7]
[315999977,1709320254661,-151.0,0.0002246,7]
[315999978,1709320254671,-151.0,0.0002246,7]
[315999979,1709320254681,-351.249226,0.0002246,7]
[315999980,1709320254690,-351.249226,0.0002246,7]
[315999981,1709320254701,-151.0,0.0002246,2]
[315999982,1709320254710,-151.0,0.0002246,7]
[315999983,1709320254721,-151.0,0.0002246,7]
[315999984,1709320254730,-151.0,0.0002246,7]
[315999985,1709320254740,-163.342664,0.0002246,7]
[315999986,1709320254750,-151.0,0.0002246,7]
[315999987,1709320254759,-151.0,0.0002246,7]
[315999988,1709320254769,-151.0,0.0002246,7]
[315999989,1709320254778,-150.0,0.00022462,2]
[315999990,1709320254788,-570.42,0.00022465,2]
[315999991,1709320254797,-500.0,0.00022465,2]
[315999992,1709320254806,-500.0,0.00022465,2]
[315999993,1709320254815,-500.0,0.00022465,2]
[315999994,1709320254825,-500.0,0.00022465,2]
[315999995,1709320254834,-500.0,0.00022465,2]
[315999996,1709320254843,-500.0,0.00022465,2]
[315999997,1709320254852,-500.0,0.00022465,2]
[315999998,1709320254863,-496.74,0.00022465,2]
[315999999,1709320254872,-500.0,0.00022465,2]
[316000000,1709320254882,-500.0,0.00022465,2]
[316000001,1709320254891,-500.0,0.00022465,2]
[316000002,1709320254903,-500.0,0.00022465,2]
[316000003,1709320254912,-500.0,0.00022465,2]
[316000004,1709320254922,-500.0,0.00022465,2]
[316000005,1709320254931,-500.0,0.00022465,2]
[316000006,1709320254940,-500.0,0.00022465,2]
[316000007,1709320254950,-500.0,0.00022465,2]
[316000008,1709320254959,-500.0,0.00022465,2]
[316000009,1709320254968,-500.0,0.00022465,2]
[316000010,1709320254978,-629.42863756,0.00022465,2]
[316000011,1709320254988,-500.0,0.00022465,2]
[316000012,1709320254997,-234.28328784,0.00022465,2]
[316000013,1709320255006,-500.0,0.00022465,2]
[316000014,1709320255015,-500.0,0.00022465,2]
[316000015,1709320255025,-608.14552939,0.00022465,2]
[316000016,1709320255034,-500.0,0.00022465,2]
[316000017,1709320255043,-500.0,0.00022465,2]
[316000018,1709320255052,-500.0,0.00022465,2]
[316000019,1709320255061,-520.7,0.00022465,2]
[316000020,1709320255070,-500.0,0.00022465,2]
[316000021,1709320255079,-1535.68,0.00022465,2]
[316000022,1709320255089,-500.0,0.00022465,2]
[316000023,1709320255098,-500.0,0.00022465,2]
[316000024,1709320255107,-500.0,0.00022465,2]
[316000025,1709320255117,-598.29064546,0.00022465,2]
[316000026,1709320255126,-500.0,0.00022465,2]
[316000027,1709320255135,-500.0,0.00022465,2]
[316000028,1709320255144,-500.0,0.00022465,2]
[316000029,1709320255153,-583.39,0.00022465,2]
[316000030,1709320255163,-500.0,0.00022465,2]
[316000031,1709320255172,-500.0,0.00022465,2]
[316000032,1709320255181,-268.68462056,0.00022465,2]
[316000033,1709320255190,-500.0,0.00022465,2]
[316000034,1709320255200,-500.0,0.00022465,2]
[316000035,1709320255209,-500.0,0.00022465,2]
[316000036,1709320255218,-280.2,0.00022465,2]
[316000037,1709320255227,-527.64388869,0.00022465,2]
[316000038,1709320255237,-500.0,0.00022465,2]
[316000039,1709320255246,-150.0,0.00022465,2]
[316000040,1709320255255,-2419.06,0.00022465,2]
[316000041,1709320255264,-439.8297695,0.00022465,2]
[316000042,1709320255274,-500.0,0.00022465,2]
[316000043,1709320255283,-500.0,0.00022465,2]
[316000044,1709320255292,-500.0,0.00022465,2]
[316000045,1709320255301,-500.0,0.00022465,2]
[316000046,1709320255310,-500.0,0.00022465,2]
[316000047,1709320255319,-500.0,0.00022465,2]
[316000048,1709320255328,-500.0,0.00022465,2]
[316000049,1709320255337,-500.0,0.00022465,2]
[316000050,1709320255346,-500.0,0.00022465,2]
[316000051,1709320255355,-500.0,0.00022465,2]
[316000052,1709320255365,-500.0,0.00022465,2]
[316000053,1709320255374,-500.0,0.00022465,2]
[316000054,1709320255383,-500.0,0.00022465,2]
[316000055,1709320255392,-500.0,0.00022465,2]
[316000056,1709320255401,-500.0,0.00022465,2]
[316000057,1709320255410,-500.0,0.00022465,2]
[316000058,1709320255419,-500.0,0.00022465,2]
[316000059,1709320255429,-500.0,0.00022465,2]
[316000060,1709320255438,-500.0,0.00022465,2]
[316000061,1709320255447,-500.0,0.00022465,2]
[316000062,1709320255456,-500.0,0.00022465,2]
[316000063,1709320255465,-500.0,0.00022465,2]
[316000064,1709320255474,-500.0,0.00022465,2]
[316000065,1709320255483,-500.0,0.00022465,2]
[316000066,1709320255492,-500.0,0.00022465,2]